bitfinex/quotes_ETHUSD_20250123
["timestamp","ask_amount","ask_price","bid_price","bid_amount"]
[1737669631316,3.07683,3250.1,3249.7,0.8178]
[1737669631626,3.07655,3250.4,3249.8,0.55]
[1737669631825,3.07655,3250.4,3249.8,3.62707]
[1737669632026,3.07655,3250.4,3249.8,0.55]
[1737669633254,3.07671,3250.3,3249.8,0.55]
[1737669633717,3.07679,3250.2,3249.8,0.55]
[1737669634230,3.07657,3250.4,3249.8,0.55]
[1737669634530,3.07664,3250.3,3249.8,0.55]
[1737669634730,0.615292,3250.4,3249.8,0.55]
[1737669634928,3.691902,3250.4,3249.8,0.55]
[1737669635335,3.07661,3250.4,3249.8,0.55]
[1737669635547,3.07702,3249.9,3249.7,0.8178]
[1737669635747,6.15326,3250.3,3248.9,0.8238]
[1737669635905,3.07752,3249.4,3248.9,0.8238]
[1737669636101,3.07736,3249.6,3249.0,3.0]
[1737669636296,3.07736,3249.6,3249.0,0.55]
[1737669636732,3.07736,3249.6,3248.9,3.90175]
[1737669636931,3.07736,3249.6,3249.0,3.07786]
[1737669637413,3.07741,3249.5,3249.0,0.55]
[1737669638460,3.0781,3248.8,3248.1,3.07869]
[1737669638609,3.07822,3248.7,3248.2,0.8098]
[1737669638808,3.07803,3248.9,3248.2,3.88836]
[1737669639041,3.07803,3248.9,3248.3,3.55]
[1737669639736,3.07722,3249.7,3249.2,3.55]
[1737669640110,3.07701,3249.9,3249.2,3.55]
[1737669640317,3.07685,3250.1,3249.4,3.55]
[1737669640651,3.07685,3250.1,3249.4,6.6274]
[1737669640802,3.07694,3250.0,3249.4,6.6274]
[1737669641251,3.07672,3250.3,3249.6,0.55]
[1737669641455,0.7631,3250.6,3249.5,0.7893]
[1737669641621,3.0773,3249.6,3249.5,0.7893]
[1737669641805,3.07715,3249.8,3249.5,0.7893]
[1737669642005,3.07673,3250.2,3249.7,3.0]
[1737669642201,3.07673,3250.2,3249.6,3.55]
[1737669642433,3.07673,3250.2,3249.7,0.741661]
[1737669646749,3.07682,3250.1,3249.7,0.741661]
[1737669647611,3.07655,3250.4,3248.9,0.8177]
[1737669647612,3.49538203,3250.4,3248.9,0.8177]
[1737669647813,3.07766,3249.3,3248.9,0.8177]
[1737669648944,3.07787,3249.0,3248.3,0.8177]
[1737669649111,0.8153,3249.4,3248.3,0.8177]
[1737669649316,3.07837,3248.5,3248.3,0.8177]
[1737669649845,3.07837,3248.5,3248.0,0.7656]
[1737669650250,3.07872,3248.1,3247.6,0.8123]
[1737669650565,0.307837,3248.5,3247.2,0.8123]
[1737669650852,3.07936,3247.5,3247.2,0.8123]
[1737669651554,3.07874,3248.1,3247.2,0.8123]
[1737669651720,3.07881,3248.0,3247.5,3.0]
[1737669651914,3.07856,3248.3,3247.7,3.0]
[1737669652121,3.07835,3248.5,3248.0,0.7631]
[1737669653053,3.07844,3248.4,3248.0,0.7631]
[1737669653257,0.7677,3249.4,3248.3,3.0]
[1737669653412,3.0774,3249.5,3248.5,3.0]
[1737669653756,3.07704,3249.9,3248.6,0.8027]
[1737669653950,3.07704,3249.9,3249.4,0.8027]
[1737669654149,3.07714,3249.8,3249.4,0.8027]
[1737669654449,3.07721,3249.7,3249.4,0.8027]
[1737669654616,3.07704,3249.9,3249.4,0.8027]
[1737669654821,3.07718,3249.8,3249.4,0.8027]
[1737669655453,0.7677,3250.3,3249.4,0.8027]
[1737669655656,3.07615,3250.9,3250.2,3.0]
[1737669655842,3.07615,3250.9,3250.1,3.07675]
[1737669655843,0.40770713,3250.8,3250.0,3.0]
[1737669656043,3.07627,3250.7,3250.0,6.07687]
[1737669656551,3.07648,3250.5,3249.4,0.8027]
[1737669656752,3.0768,3250.2,3249.5,3.0]
[1737669656955,3.0768,3250.2,3249.5,3.07738]
[1737669657256,3.07622,3250.8,3248.1,0.7751]
[1737669657257,0.7575,3250.1,3248.1,0.7751]
[1737669657555,0.7575,3250.1,3247.3,1.13816453]
[1737669657556,3.07738,3249.6,3249.0,0.7949]
[1737669657760,3.07712,3249.8,3249.1,6.07776]
[1737669658057,3.07727,3249.7,3249.1,3.995052]
[1737669658556,3.07673,3250.2,3249.1,0.995052]
[1737669658862,3.07666,3250.3,3249.7,6.07719]
[1737669659242,3.07666,3250.3,3249.6,3.0]
[1737669659441,3.07689,3250.1,3249.6,3.0]
[1737669659642,3.07693,3250.0,3249.4,3.07747]
[1737669659843,3.07693,3250.0,3249.5,3.0]
[1737669660041,3.07672,3250.3,3249.7,3.0]
[1737669660445,3.07647,3250.5,3249.7,3.7746]
[1737669660652,3.07656,3250.4,3249.7,6.85176]
[1737669661352,3.07679,3250.2,3249.5,3.0]
[1737669661747,3.07657,3250.4,3249.8,0.7746]
[1737669662129,3.07657,3250.4,3249.9,3.0]
[1737669662336,3.07638,3250.6,3249.8,0.7746]
[1737669662666,3.07663,3250.4,3249.8,0.7746]
[1737669663059,3.07663,3250.4,3249.8,6.85165]
[1737669663358,3.07638,3250.6,3250.0,3.0]
[1737669663762,1.00092126,3251.0,3249.8,0.7746]
[1737669663941,3.0757,3251.3,3250.0,3.7544]
[1737669664137,3.0757,3251.3,3250.7,3.0]
[1737669664459,0.7654,3251.7,3250.1,0.683141]
[1737669664460,3.07589,3251.1,3250.3,3.07663]
[1737669664660,3.07574,3251.3,3250.4,3.0]
[1737669664866,0.7654,3251.7,3250.4,3.0]
[1737669665066,3.0754,3251.6,3250.4,3.0]
[1737669665270,3.07631,3250.7,3250.0,0.7544]
[1737669665753,3.07631,3250.7,3250.1,3.0]
[1737669667050,3.07616,3250.8,3249.6,3.84619]
[1737669667254,3.077,3250.0,3249.6,0.7689]
[1737669667431,3.07657,3250.4,3249.6,0.7689]
[1737669667632,3.07657,3250.4,3249.7,0.384629]
[1737669668132,3.07657,3250.4,3249.8,3.07709]
[1737669668328,4.41708482,3251.5,3249.8,3.07709]
[1737669668329,3.07593,3251.1,3250.4,3.0]
[1737669668529,3.07629,3250.7,3250.2,3.0]
[1737669668763,3.07578,3251.2,3249.9,3.077]
[1737669668969,3.07635,3250.7,3249.9,3.8077709]
[1737669669143,3.07635,3250.7,3250.0,6.0769]
[1737669670171,3.07635,3250.7,3250.0,9.15375]
[1737669670356,3.07635,3250.7,3250.2,3.0]
[1737669670556,3.07608,3250.9,3250.2,3.07672]
[1737669670736,3.07573,3251.3,3250.7,3.0]
[1737669671746,3.07543,3251.6,3251.0,3.07593]
[1737669671942,3.07519,3251.9,3250.5,3.07644]
[1737669671943,3.07519,3251.9,3251.3,3.0]
[1737669672145,3.07506,3252.0,3251.5,3.0]
[1737669672344,3.07473,3252.4,3251.8,3.0]
[1737669672545,0.8063,3252.9,3251.9,0.7689]
[1737669672770,0.8063,3252.9,3252.2,3.0]
[1737669672771,3.88057,3252.9,3252.2,3.0]
[1737669673077,3.07437,3252.7,3252.2,3.0]
[1737669673277,0.7587,3253.4,3252.2,3.0]
[1737669673278,3.0742,3252.9,3252.2,3.0]
[1737669673454,3.07429,3252.8,3252.2,3.0]
[1737669673654,3.07429,3252.8,3252.2,3.607489]
[1737669673860,3.07429,3252.8,3252.1,3.0]
[1737669674060,3.07429,3252.8,3252.1,6.07486]
[1737669674257,3.07438,3252.7,3252.1,6.07486]
[1737669674673,3.07429,3252.8,3252.1,6.07486]
[1737669674870,3.07447,3252.6,3252.0,3.0]
[1737669675046,0.55,3253.3,3251.9,0.7689]
[1737669675253,3.07487,3252.2,3251.9,0.7689]
[1737669675680,3.07487,3252.2,3251.6,3.7947]
[1737669677389,3.07467,3252.4,3251.6,3.7947]
[1737669677587,3.07477,3252.3,3251.6,3.7947]
[1737669677767,3.07472,3252.4,3251.8,3.0]
[1737669677967,3.07449,3252.6,3252.0,3.0]
[1737669678163,3.07468,3252.4,3251.8,3.0]
[1737669679067,3.07468,3252.4,3251.8,3.07521]
[1737669679469,3.07468,3252.4,3251.8,3.8309028]
[1737669681087,3.07449,3252.6,3251.8,3.8309028]
[1737669681391,3.07423,3252.9,3252.4,3.0]
[1737669681554,3.0743,3252.8,3252.5,0.7889]
[1737669681754,3.0743,3252.8,3252.0,3.0]
[1737669681755,3.07492,3252.2,3251.7,0.7889]
[1737669681988,0.55,3252.7,3251.7,0.7889]
[1737669681989,0.55,3252.3,3251.7,0.7889]
[1737669682155,0.55,3252.3,3250.3,1.33864153]
[1737669682156,3.07555,3251.5,3250.8,0.8006]
[1737669682360,3.07597,3251.0,3250.5,0.8006]
[1737669682555,3.0758,3251.2,3250.5,3.87704]
[1737669682783,3.0759,3251.1,3250.6,3.0]
[1737669682984,3.0759,3251.1,3250.5,4.2955112]
[1737669683361,3.0759,3251.1,3250.6,3.0]
[1737669683568,3.0759,3251.1,3250.5,4.2955112]
[1737669683958,3.0758,3251.2,3250.5,4.2955112]
[1737669684154,0.7775,3251.6,3250.5,0.8006]
[1737669684355,3.07629,3250.7,3250.0,3.07689]
[1737669684896,0.7775,3251.6,3249.6,0.7653]
[1737669684897,3.07663,3250.4,3249.7,3.07718]
[1737669685389,3.07635,3250.6,3249.8,3.07707]
[1737669685560,3.07645,3250.5,3249.9,6.692415]
[1737669686993,3.07608,3250.9,3250.1,3.0]
[1737669687297,3.07565,3251.4,3250.5,6.07642]
[1737669687499,3.0754,3251.6,3251.0,3.0]
[1737669687796,3.07524,3251.8,3251.1,0.607606]
[1737669688094,3.07542,3251.6,3251.0,3.779]
[1737669688263,3.0755,3251.5,3251.0,3.779]
[1737669688661,3.0755,3251.5,3251.0,0.779]
[1737669688897,3.07561,3251.4,3251.0,0.779]
[1737669689070,3.07561,3251.4,3250.6,0.7997]
[1737669689270,3.07579,3251.2,3250.7,0.387613]
[1737669690397,3.07561,3251.4,3250.7,6.463853]
[1737669690567,3.07569,3251.3,3250.7,6.463853]
[1737669690967,3.07569,3251.3,3250.7,3.387613]
[1737669691183,3.07582,3251.2,3250.7,3.387613]
[1737669691386,3.07582,3251.2,3250.8,0.7263663]
[1737669692197,3.07566,3251.4,3250.8,0.7263663]
[1737669692564,3.62553,3251.5,3250.8,0.7263663]
[1737669692565,3.07553,3251.5,3250.8,0.7263663]
[1737669692771,3.07537,3251.7,3251.0,3.0]
[1737669693168,3.07542,3251.6,3251.0,3.0]
[1737669693389,3.07542,3251.6,3251.0,6.07597]
[1737669694521,3.07465,3252.4,3251.7,3.0]
[1737669694700,3.07465,3252.4,3251.9,3.0]
[1737669694863,3.07465,3252.4,3251.9,4.667619]
[1737669695068,3.07465,3252.4,3251.9,1.667619]
[1737669695599,0.7697,3252.8,3251.9,1.667619]
[1737669695799,3.07475,3252.3,3251.9,0.7601]
[1737669696571,3.84399,3252.8,3251.9,3.83521]
[1737669696882,3.07451,3252.6,3252.1,3.0]
[1737669697088,3.07429,3252.8,3252.1,3.07487]
[1737669697305,7.25497519,3253.7,3251.9,3.83521]
[1737669697306,3.07395,3253.2,3252.6,3.0]
[1737669697478,3.074,3253.1,3252.3,6.0747]
[1737669697671,3.07428,3252.8,3252.3,3.0]
[1737669698383,3.07413,3253.0,3252.3,3.07474]
[1737669698698,3.07413,3253.0,3252.4,3.0]
[1737669698879,3.07413,3253.0,3252.4,3.07465]
[1737669699505,3.07392,3253.2,3252.5,6.07453]
[1737669699665,3.07408,3253.0,3252.5,3.0]
[1737669700374,3.07392,3253.2,3252.5,3.07455]
[1737669700772,3.07402,3253.1,3252.5,3.07455]
[1737669700981,3.07402,3253.1,3252.3,3.6382227]
[1737669701194,3.07402,3253.1,3252.3,6.7128927]
[1737669701403,3.07412,3253.0,3252.3,6.7128927]
[1737669701704,3.07412,3253.0,3252.5,3.0]
[1737669704784,3.07392,3253.2,3251.9,0.7601]
[1737669704785,3.07458,3252.5,3251.9,0.7601]
[1737669705300,3.0742,3252.9,3252.1,3.0]
[1737669705607,3.07427,3252.8,3251.9,0.7601]
[1737669705804,3.07427,3252.8,3252.1,3.0]
[1737669705974,3.07427,3252.8,3252.1,6.07492]
[1737669706169,3.07427,3252.8,3252.0,0.383524]
[1737669706170,3.82777,3252.8,3252.0,0.383524]
[1737669706375,3.07411,3253.0,3252.3,3.07465]
[1737669706577,3.07391,3253.2,3252.5,0.753]
[1737669706816,3.07391,3253.2,3252.6,3.0]
[1737669707529,0.8306,3253.9,3253.1,3.07399]
[1737669707819,3.07276,3254.4,3253.6,3.07345]
[1737669707820,4.52057943,3254.4,3253.6,3.07345]
[1737669707976,3.07295,3254.2,3253.6,0.914706]
[1737669708401,3.07295,3254.2,3253.5,3.0]
[1737669708599,3.07315,3254.0,3253.4,3.07369]
[1737669715837,3.07335,3253.8,3253.2,0.8126]
[1737669716060,3.90336,3254.4,3253.2,3.88647]
[1737669716061,3.07314,3254.0,3253.2,3.88647]
[1737669716211,3.07314,3254.0,3253.3,6.462377]
[1737669716919,3.07326,3253.9,3253.3,6.462377]
[1737669717312,3.07305,3254.1,3253.6,3.0]
[1737669718144,3.07297,3254.2,3253.6,3.0]
[1737669718145,3.07315,3254.0,3253.6,3.0]
[1737669718547,6.14599,3254.2,3253.6,3.0]
[1737669719113,3.07297,3254.2,3253.6,3.0]
[1737669720041,0.55,3254.3,3253.6,3.0]
[1737669720244,3.07295,3254.2,3253.6,3.60736]
[1737669720615,3.07295,3254.2,3253.6,6.68085]
[1737669721047,0.167039,3254.5,3253.6,6.68085]
[1737669721048,0.167039,3254.5,3254.2,3.07294]
[1737669721349,0.167039,3254.5,3254.4,3.07276]
[1737669722427,3.48541924,3256.5,3256.1,3.07113]
[1737669722629,3.07094,3256.4,3255.8,0.7542]
[1737669722840,3.07081,3256.5,3255.8,0.7542]
[1737669723045,3.07088,3256.4,3255.8,0.7542]
[1737669723573,3.0708,3256.5,3255.8,3.82563]
[1737669723773,3.0707,3256.6,3255.9,3.07127]
[1737669724072,3.0707,3256.6,3255.8,3.82563]
[1737669724270,3.07069,3256.6,3256.0,3.07121]
[1737669724429,3.07069,3256.6,3255.9,3.453893]
[1737669724627,3.07069,3256.6,3256.0,3.07122]
[1737669724858,3.0711,3256.2,3255.8,0.7542]
[1737669725155,3.0711,3256.2,3255.5,3.82891]
[1737669725352,3.0711,3256.2,3255.5,4.518992]
[1737669725529,3.0711,3256.2,3255.6,3.0]
[1737669725729,3.0711,3256.2,3255.6,3.07161]
[1737669725935,3.07088,3256.4,3255.7,3.0]
[1737669726259,0.7587,3257.0,3255.8,3.0]
[1737669726469,3.07105,3256.3,3255.6,3.07162]
[1737669726624,3.07105,3256.3,3255.5,3.7572]
[1737669726824,3.07105,3256.3,3255.6,3.07162]
[1737669727027,3.07105,3256.3,3255.5,3.7572]
[1737669727221,3.07115,3256.2,3255.5,3.7572]
[1737669727426,3.07115,3256.2,3255.6,0.682893]
[1737669727654,3.07079,3256.5,3255.6,0.682893]
[1737669727655,3.07093,3256.4,3255.6,0.682893]
[1737669727860,3.07058,3256.8,3256.3,3.0]
[1737669728073,3.07047,3256.9,3256.3,0.8263]
[1737669728359,3.82902,3257.0,3256.3,3.8263]
[1737669728536,3.07032,3257.0,3256.3,7.586955]
[1737669728733,3.07044,3256.9,3256.3,4.516035]
[1737669728955,3.07044,3256.9,3255.9,3.07128]
[1737669728956,0.55,3256.2,3255.6,7.580773]
[1737669729344,0.55,3256.2,3255.8,3.0]
[1737669729544,0.55,3256.4,3255.8,3.0]
[1737669729748,3.07077,3256.6,3256.0,3.0]
[1737669729950,0.828,3257.0,3256.0,3.0]
[1737669730154,3.07075,3256.6,3256.0,3.0]
[1737669730466,0.55,3256.5,3256.0,0.607132]
[1737669730623,0.828,3257.0,3255.8,6.07144]
[1737669730828,0.55,3256.4,3255.8,6.07144]
[1737669731028,0.55,3256.9,3255.8,6.07144]
[1737669731280,0.55,3256.5,3256.0,3.0]
[1737669732363,0.55,3256.5,3256.0,6.07122]
[1737669732564,3.62059,3256.7,3256.2,3.0]
[1737669732864,0.41666667,3261.4,3256.2,3.0]
[1737669732865,3.07025,3257.1,3256.5,3.0]
[1737669733063,3.0704,3256.9,3256.5,3.0]
[1737669733270,3.07025,3257.1,3256.4,3.0]
[1737669733561,3.07025,3257.1,3256.4,6.07085]
[1737669733952,3.07025,3257.1,3256.4,7.060488]
[1737669734355,3.07032,3257.0,3256.4,7.060488]
[1737669734697,3.07025,3257.1,3256.4,0.989638]
[1737669734867,0.55,3257.0,3256.0,0.7527]
[1737669735062,3.07119,3256.1,3255.7,0.7527]
[1737669735665,3.07102,3256.3,3255.6,3.07162]
[1737669735868,3.07106,3256.2,3255.5,6.07171]
[1737669736162,3.07106,3256.2,3255.6,0.914351]
[1737669736472,3.0714,3255.9,3255.1,0.8247]
[1737669736671,3.07088,3256.4,3255.7,3.0]
[1737669736962,3.07142,3255.9,3255.4,0.8083]
[1737669737566,3.07098,3256.3,3255.7,3.07148]
[1737669737774,3.07107,3256.2,3255.7,0.307148]
[1737669737970,3.88726,3256.5,3255.7,3.307148]
[1737669738155,3.88726,3256.5,3255.7,0.307148]
[1737669738465,3.07101,3256.3,3255.7,3.307148]
[1737669739034,3.07086,3256.5,3255.8,0.7762]
[1737669739356,3.07069,3256.6,3256.1,3.0]
[1737669739556,3.07079,3256.5,3256.1,0.607125]
[1737669739885,3.07079,3256.5,3255.9,3.0]
[1737669740171,3.07104,3256.3,3255.8,0.7762]
[1737669742459,3.07093,3256.4,3255.8,0.7762]
[1737669743172,3.07097,3256.3,3255.8,0.7762]
[1737669743839,3.62078,3256.5,3255.8,0.7762]
[1737669744070,3.07089,3256.4,3255.9,3.37762]
[1737669744471,3.07078,3256.5,3255.9,3.37762]
[1737669745641,3.07096,3256.4,3255.9,3.37762]
[1737669746543,3.62101,3256.3,3255.9,0.37762]
[1737669746750,3.62101,3256.3,3255.9,3.37762]
[1737669747085,3.62101,3256.3,3256.0,0.722525]
[1737669747285,0.55,3256.4,3256.0,0.722525]
[1737669747651,3.62089,3256.4,3256.0,0.722525]
[1737669747879,0.55,3256.4,3256.0,0.722525]
[1737669748383,0.8329,3257.6,3256.1,0.7657]
[1737669748685,3.0703,3257.1,3256.4,6.07084]
[1737669748853,3.0703,3257.1,3256.5,0.914172]
[1737669749059,3.90272,3257.6,3256.5,0.914172]
[1737669749060,3.07048,3256.9,3256.5,0.914172]
[1737669749373,0.55,3256.8,3256.2,6.07106]
[1737669749947,3.07041,3256.9,3256.3,3.28810474]
[1737669750150,3.07023,3257.1,3256.3,0.21716474]
[1737669750455,3.07039,3257.0,3256.4,3.07085]
[1737669750776,3.62046,3256.9,3256.3,3.21716474]
[1737669750950,3.62046,3256.9,3256.3,4.22966321]
[1737669751291,3.62046,3256.9,3256.3,4.01249847]
[1737669752381,0.55,3256.4,3256.1,0.7657]
[1737669753481,0.55,3256.6,3256.2,3.0]
[1737669754007,3.07065,3256.7,3256.2,3.0]
[1737669754153,3.07048,3256.9,3256.2,6.07105]
[1737669754470,0.55,3256.7,3256.1,0.7657]
[1737669754677,0.55,3256.7,3256.1,1.5216545]
[1737669754984,0.55,3256.4,3256.1,0.7559545]
[1737669755847,0.55,3256.4,3255.9,6.07131]
[1737669756053,0.55,3256.6,3256.1,3.0]
[1737669756284,0.55,3256.4,3256.2,0.28150059]
[1737669756586,3.62088,3256.4,3256.2,0.28150059]
[1737669756784,3.62074,3256.6,3256.2,0.28150059]
[1737669756956,0.55,3256.4,3255.9,2.93616392]
[1737669757157,0.55,3256.4,3255.9,3.91989131]
[1737669758656,0.55,3256.4,3255.9,2.93616392]
[1737669758960,3.07173,3255.5,3255.1,0.8108]
[1737669759167,0.55,3255.4,3255.1,0.8108]
[1737669759675,0.55,3255.3,3255.2,0.22541928]
[1737669760152,3.62175,3255.5,3255.2,0.22541928]
[1737669760552,3.07124,3256.1,3255.3,3.07189]
[1737669760752,3.07084,3256.5,3255.9,3.07134]
[1737669760955,3.07059,3256.7,3255.5,0.8108]
[1737669761155,3.07122,3256.1,3255.5,3.8108]
[1737669761469,0.55,3256.0,3255.5,6.88251]
[1737669761981,3.62132,3256.0,3255.5,3.8108]
[1737669762307,0.55,3255.4,3255.1,0.8108]
[1737669762991,3.62182,3255.4,3255.1,0.8108]
[1737669763382,3.6217,3255.6,3255.1,0.8108]
[1737669763580,0.55,3255.4,3255.1,0.8108]
[1737669764970,0.55,3255.2,3254.7,3.8066]
[1737669765171,3.07229,3254.9,3254.7,0.8066]
[1737669765375,0.362196,3255.2,3254.3,0.8066]
[1737669765376,0.55,3254.5,3254.3,0.8066]
[1737669765758,0.55,3254.9,3254.4,3.0]
[1737669766101,0.55,3254.6,3254.3,0.8066]
[1737669766302,0.55,3254.4,3254.3,0.8066]
[1737669766509,0.55,3254.4,3254.1,3.0]
[1737669766667,0.55,3254.6,3254.2,3.0]
[1737669766995,3.62266,3254.6,3254.0,3.87973]
[1737669767703,0.55,3254.5,3254.1,3.0]
[1737669768398,3.62267,3254.5,3254.0,0.8066]
[1737669768692,0.55,3254.4,3254.0,0.8066]
[1737669770900,3.62285,3254.4,3254.0,0.8066]
[1737669771099,0.55,3254.2,3253.7,3.0]
[1737669771671,0.55,3254.4,3253.7,3.0]
[1737669771868,0.55,3254.4,3253.9,3.0]
[1737669772401,3.62276,3254.4,3253.9,3.0]
[1737669773067,3.47276,3254.4,3253.9,3.0]
[1737669773263,3.07225,3255.0,3254.3,3.07285]
[1737669773575,3.07177,3255.5,3254.9,0.8271]
[1737669773807,3.07163,3255.6,3255.3,3.0]
[1737669774126,3.67220229,3256.3,3254.9,3.8271]
[1737669774127,3.07173,3255.5,3254.9,3.8271]
[1737669774405,3.07155,3255.7,3254.9,3.89938]
[1737669774707,3.07155,3255.7,3255.1,3.0]
[1737669775000,3.07163,3255.6,3255.1,3.0]
[1737669775411,0.55,3255.4,3255.1,3.0]
[1737669775763,0.55,3255.5,3254.9,0.8271]
[1737669775968,3.07188,3255.4,3254.9,0.8271]
[1737669776168,3.07193,3255.3,3254.9,0.8271]
[1737669776475,0.55,3255.2,3254.9,0.8271]
[1737669776775,0.55,3255.2,3254.9,1.42308591]
[1737669776976,0.55,3255.4,3254.9,1.42308591]
[1737669777399,0.55,3255.3,3254.9,0.8271]
[1737669777582,3.62193,3255.3,3254.9,0.8271]
[1737669777905,0.55,3255.3,3254.9,0.8271]
[1737669778511,3.62174,3255.5,3254.9,0.8271]
[1737669778706,0.55,3255.3,3254.9,0.8271]
[1737669779276,0.55,3255.2,3254.7,3.0]
[1737669779475,0.55,3255.2,3254.7,3.983]
[1737669779906,0.55,3255.4,3254.9,3.0]
[1737669780086,3.62182,3255.4,3254.7,3.983]
[1737669780508,3.62182,3255.4,3254.9,3.0]
[1737669781334,3.62182,3255.4,3254.7,0.983]
[1737669781335,0.55,3255.2,3254.7,3.0]
[1737669781529,0.7994,3255.0,3253.5,3.83374]
[1737669781678,0.55,3254.0,3253.5,3.83378]
[1737669781873,0.7994,3255.0,3253.5,0.7602]
[1737669782108,3.07249,3254.7,3254.0,3.0]
[1737669782327,3.07238,3254.8,3254.2,3.0]
[1737669782634,0.55,3254.8,3254.4,3.0]
[1737669782909,0.55,3254.8,3254.3,3.757365]
[1737669782910,0.55,3254.8,3254.3,0.684525]
[1737669783074,3.62239,3254.8,3254.1,0.7723]
[1737669783270,0.55,3254.7,3254.2,6.07288]
[1737669783480,3.07221,3255.0,3254.2,6.07293]
[1737669783683,0.55,3254.9,3254.2,6.07293]
[1737669784314,3.07183,3255.4,3254.8,3.0]
[1737669784490,3.07183,3255.4,3254.8,0.682749]
[1737669784814,3.07183,3255.4,3254.7,3.7551]
[1737669785320,3.07166,3255.6,3254.9,3.07228]
[1737669785489,3.07144,3255.8,3255.2,3.0]
[1737669786219,0.55,3255.7,3255.2,3.0]
[1737669787395,0.55,3255.6,3255.2,3.0]
[1737669787914,0.55,3255.6,3255.3,0.8302]
[1737669790940,0.7631,3256.7,3255.3,0.8302]
[1737669791151,3.07068,3256.6,3255.7,3.0]
[1737669791330,3.83372,3256.7,3256.1,3.0]
[1737669791734,3.62075,3256.6,3256.0,0.8214]
[1737669792057,3.62075,3256.6,3256.1,3.0]
[1737669792556,3.62075,3256.6,3248.9,8.0]
[1737669792557,0.55,3256.3,3255.6,0.7949]
[1737669792707,0.55,3255.8,3255.2,3.86682]
[1737669792906,3.62149,3255.8,3255.2,3.07192]
[1737669793208,3.07197,3255.3,3254.6,3.85764]
[1737669793544,0.669284,3255.8,3254.6,3.85764]
[1737669793545,3.85618,3255.4,3254.7,6.07247]
[1737669793860,3.07192,3255.3,3254.7,3.07247]
[1737669794218,0.7843,3255.4,3254.7,3.07247]
[1737669794418,0.7843,3255.4,3254.9,3.0]
[1737669794602,0.7843,3255.4,3254.6,3.0]
[1737669794943,3.07197,3255.3,3254.6,3.0]
[1737669795107,3.07197,3255.3,3254.7,3.07246]
[1737669795302,0.7843,3255.4,3254.6,3.757145]
[1737669795303,3.85612,3255.4,3254.6,3.757145]
[1737669795508,3.07192,3255.3,3254.7,6.07246]
[1737669795941,0.7843,3255.4,3254.7,6.07246]
[1737669796141,0.7843,3255.4,3254.9,3.0]
[1737669796338,0.78,3255.7,3254.9,3.607237]
[1737669796527,3.85118,3256.1,3255.3,3.0]
[1737669796839,3.85118,3256.1,3254.9,0.607237]
[1737669796840,3.07066,3256.7,3255.4,0.7683]
[1737669797039,3.07074,3256.6,3256.1,3.0]
[1737669797601,0.55,3256.0,3255.4,0.7683]
[1737669797902,3.07117,3256.1,3255.4,0.7683]
[1737669797903,3.07098,3256.3,3255.5,0.384014]
[1737669798106,3.07098,3256.3,3255.5,6.455664]
[1737669798302,3.07078,3256.5,3255.5,6.455664]
[1737669798303,0.55,3256.2,3255.7,3.0]
[1737669798503,0.55,3256.4,3255.8,3.0]
[1737669798704,3.07093,3256.4,3255.7,6.07153]
[1737669798939,0.55,3256.4,3255.8,3.985736]
[1737669799150,3.07106,3256.2,3255.8,0.914316]
[1737669799344,0.55,3256.4,3255.8,3.914316]
[1737669799640,3.62095,3256.4,3255.8,3.914316]
[1737669799843,3.07097,3256.3,3255.8,3.914316]
[1737669800242,3.88766,3256.1,3255.4,3.7683]
[1737669800414,3.07127,3256.0,3255.4,3.7683]
[1737669800842,0.55,3255.6,3255.1,0.8004]
[1737669801141,0.55,3255.6,3255.1,3.8004]
[1737669801439,0.55,3255.6,3255.1,0.8004]
[1737669801741,0.55,3255.4,3255.1,0.8004]
[1737669802809,3.62183,3255.4,3254.8,6.89397]
[1737669803005,3.62183,3255.4,3254.9,0.607245]
[1737669803426,3.07155,3255.7,3254.9,3.679495]
[1737669803427,3.62169,3255.6,3254.9,3.679495]
[1737669803839,0.55,3255.6,3255.0,3.07212]
[1737669804043,3.62163,3255.6,3255.0,3.07212]
[1737669804241,3.07148,3255.8,3255.1,3.07209]
[1737669804446,0.8165,3256.1,3255.1,3.0]
[1737669804447,3.88769,3256.1,3255.1,3.0]
[1737669804647,3.07099,3256.3,3255.6,3.0]
[1737669804939,3.07179,3255.5,3255.0,4.0573335]
[1737669805143,3.07179,3255.5,3254.8,6.88246]
[1737669805525,3.87334,3255.7,3254.8,6.88246]
[1737669805526,0.55,3255.6,3254.8,0.8101]
[1737669805720,3.62164,3255.6,3255.0,3.07219]
[1737669806142,0.55,3255.6,3255.1,6.07208]
[1737669806347,3.07147,3255.8,3255.1,6.07208]
[1737669806521,0.55,3255.8,3255.2,3.986417]
[1737669806725,3.62147,3255.8,3255.2,3.986417]
[1737669807148,0.55,3255.8,3255.2,3.986417]
[1737669807326,3.62145,3255.8,3255.2,3.986417]
[1737669808633,0.55,3255.9,3255.4,3.0]